Cogmind - Beta 16 --- EXPLORER MODE // 2025.11.17 @ 10:17:21 Player: K.K.Y. Result: Destroyed by AX-JAI(j) with Overtuned Pulse Rifle Performance ------------- Evolutions (0) 0 Regions Visited (4) 800 Robots Destroyed (39) 195 Value Destroyed (857) 857 Prototype IDs (15) 300 Alien Tech Used (0) 0 Bonus (300) 300 TOTAL SCORE: 2452 Bonus ------- Registered with UFD 300 Cogmind --------- Core Integrity 0/250 Matter 175/300 Energy 100/100 System Corruption 2% Temperature Cool (-88) Movement Core (1400) Ox27 Location -9/Scraptown Parts ------- > --- POWER (1) -------- (None) > --- PROPULSION (3) --- (None) > --- UTILITY (2) ------ Cryofiber Web Huge Storage Unit > --- WEAPON (2) ------- High-powered Shotgun > --- INVENTORY (25) --- IFF Parser Transport Network Coupler Hardened Light Armor Plating Scrap Shield Improved Shield Generator Authchip [R/Combat] Authchip [Armor] Relay Coupler [Sentry] (2) Relay Coupler [Specialist] (2) Relay Coupler [Specialist] (4) Relay Coupler [Hunter] (4) Relay Coupler [Heavy] (4) Relay Coupler [Behemoth] (2) Spread Laser Gatling Laser Heavy Plasma Cannon Minigun Barrage Gun Barrage Gun Flak Cannon Datajack Plasma Cutter CPS Tube (2) Makeshift Sword Peak State ------------ > --- POWER ------------ Improved Ion Engine > --- PROPULSION ------- Arachnoskeleton > --- UTILITY ---------- Huge Storage Unit Force Field > --- WEAPON ----------- High-powered Shotgun Heavy Hammer > --- INVENTORY -------- Improved Terrain Scan Processor Transport Network Coupler Hardened Light Armor Plating Scrap Shield Improved Shield Generator Authchip [R/Combat] Authchip [Armor] Relay Coupler [Sentry] Relay Coupler [Specialist] Relay Coupler [Specialist] Relay Coupler [Hunter] Relay Coupler [Heavy] Relay Coupler [Behemoth] Spread Laser Gatling Laser Heavy Plasma Cannon Minigun Barrage Gun Barrage Gun Datajack Plasma Cutter CPS Tube Makeshift Sword Great Axe [Rating: 42] Favorites ----------- Power Ion Engine Engine Ion Engine Propulsion Light Treads Treads Light Treads Leg Aluminum Leg Utility Large Storage Unit Device Cryofiber Web Storage Large Storage Unit Processor Targeting Computer Protection Light Armor Plating Weapon Hammer Energy Gun Medium Laser Ballistic Gun High-powered Shotgun Special Weapon CPS Tube Impact Weapon Hammer Slashing Weapon Makeshift Sword Piercing Weapon Makeshift Spear Build | -11 -10 -10 -9 -9 ------- Run | Yrd Mat Sub Rec Scr Slots Evolved 1 | . 1 . . . Power . | . . . . . Propulsion 1 | . 1 . . . Utility . | . . . . . Weapon . | . . . . . Parts Attached 38 | 6 5 12 4 11 Power 6 | 1 . 3 2 . Engine 6 | 1 . 3 2 . Core . | . . . . . Reactor . | . . . . . Propulsion 11 | 2 2 5 . 2 Treads 5 | 2 2 1 . . Leg 6 | . . 4 . 2 Wheel . | . . . . . Hover . | . . . . . Flight . | . . . . . Utility 9 | 2 2 . 2 3 Device 2 | . . . . 2 Storage 3 | 1 1 . 1 . Processor 1 | . . . . 1 Hackware . | . . . . . Protection 3 | 1 1 . 1 . Artifact . | . . . . . Weapon 12 | 1 1 4 . 6 Energy Gun 1 | 1 . . . . Energy Cannon . | . . . . . Ballistic Gun 5 | . . 2 . 3 Ballistic Cannon . | . . . . . Launcher . | . . . . . Special Weapon 1 | . . . . 1 Impact Weapon 2 | . 1 . . 1 Slashing Weapon 2 | . . 1 . 1 Piercing Weapon 1 | . . 1 . . Special Melee Weapon . | . . . . . Unidentified Prototypes . | . . . . . Parts Lost 10 | . . 6 . 4 Power 2 | . . 1 . 1 Propulsion 5 | . . 3 . 2 Utility 2 | . . 2 . . Weapon 1 | . . . . 1 Highest Loss Streak 4 | . . 2 . 4 To Critical Strikes . | . . . . . Average Backups 15 | 1 7 12 16 22 Power . | . . . 1 . Propulsion . | . 1 . . . Utility 5 | . 2 3 4 11 Weapon 7 | . 2 7 8 7 Tool/Special . | . . . . . Unused Backups 35 | . . 2 4 29 Power 2 | . . . . 2 Propulsion 1 | . . 1 . . Utility 16 | . . 1 . 15 Weapon 14 | . . . 4 10 Tool/Special 2 | . . . . 2 Average Slot Usage (%) 79 | . 88 78 73 77 Engine 11 | . 12 9 12 11 Treads 8 | . 31 7 . . Leg 15 | . . 22 12 15 Device 3 | . . . . 10 Storage 11 | . 12 10 12 12 Protection 5 | . 10 5 11 . Energy Gun 3 | . 10 3 . . Ballistic Gun 5 | . . 2 . 12 Impact Weapon 6 | . 9 8 . 3 Slashing Weapon 4 | . . 2 12 5 Piercing Weapon 3 | . . 3 12 2 Peak Build Rating 42 | 6 9 35 37 42 Average Rating 27 | 4 7 28 36 32 On Entrance 17 | . 6 9 33 37 Avg Prop Armor Cover (%) . | . . . . . Naked Turns . | . . . . . Heaviest Build 94 | 20 32 33 94 94 Greatest Support 80 | 40 60 80 50 50 Greatest Overweight (x) 4 | . 1 . 1 4 Average Overweight (x) . | . . . . 1 Largest Inventory Capacity 25 | 10 15 15 25 25 Average Capacity 18 | 8 13 15 21 25 Most Carried 25 | 5 14 15 19 25 Average Carried 15 | 1 7 13 17 23 Final Capacity 25 | 10 15 15 25 25 Final Carried 25 | 1 10 14 19 25 Class Distribution -------------------- 100% | Hacker-Mutant Dominant Class ---------------- Hacker-Mutant | -10/Materials Hacker-Mutant | -10/Subcaves Hacker-Mutant | -9/Recycling Hacker-Mutant | -9/Scraptown Resources | -11 -10 -10 -9 -9 ----------- Run | Yrd Mat Sub Rec Scr Matter Collected 833 | 185 111 432 47 58 Remotely . | . . . . . Salvage Created 1497 | . 222 731 544 . Parts 99 | . 19 56 24 . Haulers Intercepted 2 | . 2 . . . Recyclers Shooed . | . . . . . Parts Field Recycled . | . . . . . Retrieved Matter . | . . . . . Parts Self-Destructed . | . . . . . Prevented . | . . . . . Parts Restored . | . . . . . Kills | -11 -10 -10 -9 -9 ------- Run | Yrd Mat Sub Rec Scr Combat Hostiles Destroyed 29 | . 5 21 3 . Melee 9 | . . 6 3 . Guns 19 | . 4 15 . . Classes Destroyed 7 | . 4 2 1 . Worker 1 | . 1 . . . Hauler 2 | . 2 . . . Recycler 5 | . . . 5 . Watcher 2 | . 2 . . . Swarmer 13 | . 5 8 . . Sentry 4 | . . 1 3 . Subdweller 12 | . . 12 . . Best Kill Streak 4 | . 3 4 4 . Combat Bots Only 4 | . 2 4 1 . Max Kills in Single Turn 1 | . 1 1 1 . Gunslinging . | . . . . . Exploded . | . . . . . Melee 1 | . . 1 1 . Uniques/NPCs Destroyed . | . . . . . Combat | -11 -10 -10 -9 -9 -------- Run | Yrd Mat Sub Rec Scr Hostile Shots Fired 255 | . 30 206 2 17 Missed 92 | . 6 82 2 2 Hits 163 | . 24 124 . 15 Projectile 163 | . 24 124 . 15 Critical Strikes 1 | . . 1 . . Damage Taken 1624 | . 114 1114 . 396 Core 256 | . 34 167 . 55 Absorbed by Shields . | . . . . . Ignored by Resistances 991 | . 84 683 . 224 Regen/Repaired (Parts) 155 | . 155 . . . Core Remaining (%) 100 | 100 . . . . Volleys Fired 116 | . 21 95 . . Largest 1 | . 1 1 . . Hottest 50 | . 50 50 . . Shots Fired 118 | . 21 96 . 1 Gun 118 | . 21 96 . 1 Cannon . | . . . . . Launcher . | . . . . . Special . | . . . . . Kinetic 46 | . . 45 . 1 Thermal 72 | . 21 51 . . Explosive . | . . . . . Electromagnetic . | . . . . . Robot Hit Streak 29 | . 4 29 . 13 Robot Miss Streak 4 | . 4 1 . . Penetration Max . | . . . . . Secondary Targets . | . . . . . Shots Hit Robots 140 | . 17 105 17 1 Core Hits 48 | . 7 33 8 . Critical Kills . | . . . . . Critical Parts Destroyed 2 | . 1 1 . . Critical Strikes 13 | . 3 10 . . Burn 9 | . 2 7 . . Destroy 1 | . . 1 . . Smash 2 | . 1 1 . . Impale 1 | . . 1 . . Melee Attacks 81 | . 7 55 19 . Impact 20 | . 7 13 . . Slashing 21 | . . 5 16 . Piercing 40 | . . 37 3 . Sneak Attacks 13 | . 4 . 9 . Combat Hostiles . | . . . . . Follow-up Attacks 5 | . . 4 1 . Damage Inflicted 3008 | . 339 1731 938 . Guns 1355 | . 137 1218 . . Cannons . | . . . . . Explosions . | . . . . . Melee 1653 | . 202 513 938 . Ramming . | . . . . . Kinetic 703 | . . 703 . . Thermal 652 | . 137 515 . . Explosive . | . . . . . Electromagnetic . | . . . . . Impact 370 | . 202 168 . . Slashing 985 | . . 111 874 . Piercing 298 | . . 234 64 . Highest Corruption 2 | . 2 2 2 2 Average Corruption 1 | . 1 2 2 2 Corruption Purged . | . . . . . Corruption Blocked . | . . . . . Effects 91 | . 9 46 11 25 Message Errors 29 | . 2 16 5 6 Matter Fused 22 | . 3 9 1 9 Heat Flow Errors 8 | . 2 3 . 3 Energy Discharges 11 | . 1 5 2 3 Data Loss (minor) 11 | . 1 7 2 1 Data Loss (major) 5 | . . 2 1 2 Misfires 3 | . . 2 . 1 Alerts 1 | . . 1 . . Weapon Failures 1 | . . 1 . . Overload Shots . | . . . . . Overflow Damage 339 | . 84 44 211 . Projectiles . | . . . . . Explosions . | . . . . . Melee 339 | . 84 44 211 . Knockbacks 3 | . 2 1 . . Impact 3 | . 2 1 . . Kinetic . | . . . . . Secondary . | . . . . . Self-Inflicted Damage . | . . . . . Shots . | . . . . . Rammed . | . . . . . Targets Rammed . | . . . . . Kicked . | . . . . . Crushed . | . . . . . Highest Temperature 223 | . 223 157 . 153 Average Temperature 50 | . 47 60 . 61 Received Heat Transfer 588 | . . 492 . 96 Siege Activations . | . . . . . Martial Activations . | . . . . . Shielding Activations . | . . . . . Robots Disrupted . | . . . . . Combat Hostiles . | . . . . . Robots Corrupted 3 | . 3 . . . Combat Hostiles 1 | . 1 . . . Parts Fried 4 | . 2 2 . . Impact Corruptions 4 | . 3 1 . . Robots Melted . | . . . . . Combat Hostiles . | . . . . . Parts Melted 2 | . 1 1 . . Heat Transferred 2590 | . 555 2035 . . Parts Sabotaged . | . . . . . Parts Stolen . | . . . . . Parts Stripped . | . . . . . Power Chain Reactions . | . . . . . Alert | -11 -10 -10 -9 -9 ------- Run | Yrd Mat Sub Rec Scr Maximum Alert Level . | . . . . . Low Security (%) 100 | 100 100 . 100 . Level 1 . | . . . . . Level 2 . | . . . . . Level 3 . | . . . . . Level 4 . | . . . . . Level 5 . | . . . . . High Security . | . . . . . Max Security . | . . . . . Peak Influence 65 | . 65 . 20 . Initial . | . . . . . Average 3 | . 4 . 1 . Influence Increases 590 | . 196 275 119 . Destroy 0b10 Robot/C 340 | . 100 180 60 . Destroy 0b10 Robot/NC 50 | . 25 . 25 . Destroy Leader 58 | . 38 20 . . Successful Hack 52 | . 18 . 34 . Lose Combat Pursuer 90 | . 15 75 . . Influence Decreases 590 | . 196 275 119 . Time Decay 570 | . 196 255 119 . Lost Part 20 | . . 20 . . Squads Dispatched . | . . . . . Investigation . | . . . . . Extermination . | . . . . . Reinforcement . | . . . . . Assault . | . . . . . Garrison . | . . . . . Intercept . | . . . . . Searches Triggered . | . . . . . Construction Impeded . | . . . . . Haulers Reinforced . | . . . . . Active Scanning Responses . | . . . . . Cargo Convoy Interrupts . | . . . . . Stealth | -11 -10 -10 -9 -9 --------- Run | Yrd Mat Sub Rec Scr Distress Signals . | . . . . . Communications Jammed . | . . . . . Distress Signals . | . . . . . Times Spotted 43 | . 9 27 1 6 Peak Tracking Total 6 | . 2 6 . 6 Tactical Retreats 4 | . 1 3 . . Traps | -11 -10 -10 -9 -9 ------- Run | Yrd Mat Sub Rec Scr Traps Triggered 5 | . 4 1 . . Indirectly . | . . . . . Trap Hack Attempts . | . . . . . Triggered . | . . . . . Disarmed . | . . . . . Reprogrammed . | . . . . . Reused . | . . . . . Traps Extracted . | . . . . . Installed . | . . . . . Triggered . | . . . . . Machines | -11 -10 -10 -9 -9 ---------- Run | Yrd Mat Sub Rec Scr Machines Disabled 4 | . . 3 . 1 Max in Single Turn 1 | . . 1 . 1 Machines Repaired . | . . . . . Machines Dismantled . | . . . . . Machines Sabotaged . | . . . . . Overloaded Fab Kills . | . . . . . Hacking | -11 -10 -10 -9 -9 --------- Run | Yrd Mat Sub Rec Scr Machines Accessed 16 | . 8 2 6 . Terminals 13 | . 7 . 6 . Fabricators . | . . . . . Repair Stations 1 | . 1 . . . Recycling Units . | . . . . . Scanalyzers . | . . . . . Garrison Access . | . . . . . Total Hacks 56 | . 30 5 21 . Successful 44 | . 23 5 16 . Failed 12 | . 7 . 5 . Catastrophic 1 | . 1 . . . Database Lockouts . | . . . . . Manual . | . . . . . Terminals 41 | . 20 . 21 . Fabricators . | . . . . . Repair Stations 10 | . 10 . . . Recycling Units . | . . . . . Scanalyzers . | . . . . . Garrison Access . | . . . . . Terminal Hacks 34 | . 13 5 16 . Record 4 | . . 4 . . Part Schematic 6 | . . . 6 . Robot Schematic 3 | . . . 3 . Prototype ID Bank 2 | . 1 . 1 . Level Access Points 1 | . . . 1 . Terminal Index 1 | . 1 . . . Scanalyzer Index 1 | . 1 . . . Garrison Index 1 | . . . 1 . Transport Status 2 | . 1 . 1 . Investigation Status 1 | . 1 . . . Hauler Manifests 4 | . 2 . 2 . Registered Components 2 | . 1 . 1 . Registered Prototypes 1 | . 1 . . . Zone Layout 4 | . 4 . . . Proto ID Catalog 1 | . . 1 . . Fabricator Hacks . | . . . . . Repair Station Hacks 10 | . 10 . . . Scan Component 5 | . 5 . . . Repair 5 | . 5 . . . Recycling Unit Hacks . | . . . . . Scanalyzer . | . . . . . Garrison Access Hacks . | . . . . . Unauthorized Hacks . | . . . . . Terminals . | . . . . . Fabricators . | . . . . . Repair Stations . | . . . . . Recycling Units . | . . . . . Scanalyzers . | . . . . . Garrison Access . | . . . . . Data Cores Recovered . | . . . . . Used . | . . . . . Hacking Detections 10 | . 5 . 5 . Full Trace Events 7 | . 2 . 5 . Feedback Events . | . . . . . Feedback Blocked . | . . . . . Robot Schematics Acquired 3 | . . . 3 . Robots Built . | . . . . . Authchips . | . . . . . Time . | . . . . . Total Robot Build Rating . | . . . . . Part Schematics Acquired 6 | . . . 6 . Parts Built . | . . . . . Authchips . | . . . . . Time . | . . . . . Total Part Build Rating . | . . . . . Part Studies Acquired . | . . . . . Parts Repaired 5 | . 5 . . . Time 130 | . 130 . . . Parts Recycled . | . . . . . Recycled Matter . | . . . . . Retrieved Matter . | . . . . . Retrieved Components . | . . . . . Parts Scanalyzed . | . . . . . Part Schematics Acquired . | . . . . . Parts Damaged . | . . . . . Bothacking | -11 -10 -10 -9 -9 ------------ Run | Yrd Mat Sub Rec Scr Used RIF Installer . | . . . . . Robots Hacked . | . . . . . Non-combat . | . . . . . Combat . | . . . . . Robot Hacks Applied . | . . . . . Relay Couplers Released . | . . . . . Fabnet Peak Effective % . | . . . . . Robots Rewired . | . . . . . Allies Hacked . | . . . . . Hacks Repelled . | . . . . . Allies | -11 -10 -10 -9 -9 -------- Run | Yrd Mat Sub Rec Scr Total Allies . | . . . . . Largest Group . | . . . . . Highest-Rated Group . | . . . . . Highest-Rated Ally . | . . . . . Total Orders . | . . . . . Ally Attacks . | . . . . . Total Damage . | . . . . . Kills . | . . . . . Allies Corrupted . | . . . . . Allies Melted . | . . . . . Intel | -11 -10 -10 -9 -9 ------- Run | Yrd Mat Sub Rec Scr Active Infowar (turns) . | . . . . . Robot Analysis Total . | . . . . . Derelict Logs Recovered 1 | . . . . 1 Drone Launches . | . . . . . Drone Recoveries . | . . . . . Exploration | -11 -10 -10 -9 -9 ------------- Run | Yrd Mat Sub Rec Scr Turns Passed 8780 | 71 1352 3801 1001 2555 Spaces Moved 4959 | 57 662 2447 707 1086 Core 29 | 29 . . . . Treads 1146 | 28 662 456 . . Legs 3784 | . . 1991 707 1086 Wheels . | . . . . . Hover . | . . . . . Flight . | . . . . . Fastest Speed 50 | 50 160 90 90 180 Average Speed 150 | 104 163 116 133 231 Slowest Speed 400 | 160 240 160 180 400 Overloaded Moves . | . . . . . Propulsion Burnouts . | . . . . . Robots Hopped . | . . . . . Potential Cave-ins . | . . . . . Cave-ins Triggered . | . . . . . Exploration Rate (%) 70 | 4 92 96 99 62 Regions Visited 4 Branch Regions 3 Pre-discovered Areas 1 | . . . . 1 Known Exits Taken 4 | 1 1 1 1 . Unknown Exits Taken . | . . . . . Scrap Searched 18 | . . 10 . 8 Spaces Dug 6 | . . 6 . . Terrain Destroyed 6 | . . 6 . . Melee 6 | . . 6 . . Projectile . | . . . . . AOE . | . . . . . Terrain Rammed . | . . . . . Walls Destroyed . | . . . . . Machines Disabled . | . . . . . Actions | -11 -10 -10 -9 -9 --------- Run | Yrd Mat Sub Rec Scr Total 6120 | 68 900 3254 756 1142 Wait 817 | . 182 625 10 . Move 4955 | 56 661 2446 706 1086 Hop . | . . . . . Pick Up 72 | 6 21 15 11 19 Fast Attach 11 | 1 . 1 1 8 Attach 21 | 5 6 8 . 2 Detach 5 | . . 1 . 4 Swap 13 | . 1 6 3 3 Drop 40 | . 1 10 9 20 Fire 116 | . 21 95 . . Melee 70 | . 7 47 16 . Ram . | . . . . . Kick . | . . . . . Crush . | . . . . . Escape Stasis . | . . . . . Rewire . | . . . . . Trap . | . . . . . Miscellaneous . | . . . . . Route ------- -11/Scrapyard -10/Materials (discovered 5 exits: *Mat x3 / *Min / *Sub) -10/Subcaves (discovered 4 exits: *Mat x2 / *Rec / *Scr) -9/Recycling (discovered 2 exits: *Fac / *Scr) -9/Scraptown History --------- Turn | Location | Event 5 | -11/Scrapyard | Identified exit to Materials 5 | -11/Scrapyard | Discovered exit to Materials (range 14) 72 | -11/Scrapyard | Entered Materials 72 | -10/Materials | Evolved 1 slot: Propulsion x1 73 | -10/Materials | Met a group of wandering Federalists 257 | -10/Materials | Identified exit to Mines 257 | -10/Materials | Discovered exit to Mines (range 16) 321 | -10/Materials | Build established: Hacker-Mutant 396 | -10/Materials | Identified exit to Materials 396 | -10/Materials | Discovered exit to Materials (range 13) 741 | -10/Materials | Discovered exit to Materials (range 14) 1014 | -10/Materials | Discovered exit to Materials (range 17) 1180 | -10/Materials | Repaired Lgt. Armor Plating 1207 | -10/Materials | Repaired Lgt. Treads 1234 | -10/Materials | Repaired Med. Laser 1261 | -10/Materials | Repaired Lgt. Treads 1288 | -10/Materials | Repaired Lgt. Treads 1407 | -10/Materials | Identified exit to Subcaves 1407 | -10/Materials | Discovered exit to Subcaves (range 6) 1424 | -10/Materials | Entered Subcaves 1425 | -10/Subcaves | Continued accompanying wandering Federalists (4) 1425 | -10/Subcaves | Approached by a straggling Scientist 1563 | -10/Subcaves | Lost 4 allies 1710 | -10/Subcaves | Scientist uncovered a shortcut to Scraptown 1981 | -10/Subcaves | Visited 4L-MR0's lab 2008 | -10/Subcaves | Found Arachnoskeleton 2233 | -10/Subcaves | Attached Arachnoskeleton, gained temporary slots: Propulsion x3 2490 | -10/Subcaves | Shifting Twisted Machinery released Sub. Monowheel 2494 | -10/Subcaves | Shifting Twisted Machinery released Barrage Gun 2656 | -10/Subcaves | Identified exit to Recycling 2656 | -10/Subcaves | Discovered exit to Recycling (range 10) 2738 | -10/Subcaves | Core integrity fell below 50% 3019 | -10/Subcaves | Disturbed a concealed Subdweller 3095 | -10/Subcaves | Identified exit to Materials 3095 | -10/Subcaves | Discovered exit to Materials (range 10) 3268 | -10/Subcaves | Shifting Twisted Machinery released Sub. Beam Cannon 3270 | -10/Subcaves | Shifting Twisted Machinery released Sub. Machine Gun 3687 | -10/Subcaves | Discovered exit to Materials (range 8) 3689 | -10/Subcaves | Core integrity fell below 20% 3932 | -10/Subcaves | A swath of the cavern ceiling suddenly collapsed 4073 | -10/Subcaves | Visited Clippyterm 4077 | -10/Subcaves | Learned Research security intel 4077 | -10/Subcaves | Learned 40 Factory zone layouts 4138 | -10/Subcaves | Disturbed a concealed Subdweller 4317 | -10/Subcaves | Shifting Twisted Machinery released Sub. Shrapnel Launcher 4714 | -10/Subcaves | A swath of the cavern ceiling suddenly collapsed 5225 | -10/Subcaves | Entered Recycling 5262 | -9/Recycling | Identified exit to Factory 6183 | -9/Recycling | Scanned before Scraplab entrance 6210 | -9/Recycling | Entered Scraplab 6224 | -9/Recycling | Identified exit to Scraptown 6224 | -9/Recycling | Discovered exit to Scraptown (range 2) 6226 | -9/Recycling | Entered Scraptown 6384 | -9/Scraptown | Heard Great Nut preacher, LISTEN AND RECITE! 6473 | -9/Scraptown | Visited Bundlers 6610 | -9/Scraptown | Visited Scrapoid Research Area 6637 | -9/Scraptown | Visited Cyclists 6651 | -9/Scraptown | Visited Red Mages 6807 | -9/Scraptown | Scanned Subdweller tech in exchange for log data 6813 | -9/Scraptown | Learned location of Armory (-4) 8200 | -9/Scraptown | Visited Fellowship of the Rings 8296 | -9/Scraptown | Visited The Evicted 8395 | -9/Scraptown | Visited Junk Repository 8744 | -9/Scraptown | Visited UFD Registry 8744 | -9/Scraptown | Registered with UFD as "Chainfunk" 8774 | -9/Scraptown | Attacked by Scraptown defenders 8781 | -9/Scraptown | Destroyed by AX-JAI(j) with Overtuned Pulse Rifle Last Messages --------------- 08774_ Machine disabled. 08774_ ANNOUNCEMENT: Intruder alert! Defend Scraptown! 08775_ Triborg activates siege mode. 08775_ Penetrated by Siege Slug. 08775_ Siege Slug penetrates Machine. 08775_ Machine disabled. 08777_ Penetrated by Siege Slug. 08777_ Knocked back. 08777_ Penetrated by Siege Slug. 08779_ Imp. Ion Engine destroyed. 08779_ Imp. Aluminum Leg destroyed. 08779_ Knocked back. 08779_ Penetrated by Siege Slug. 08781_ AX-JAI(j): "Chainfunk? More like Loserface!" 08781_ Penetrated by Siege Slug. 08781_ Hpw. Shotgun destroyed. 08781_ Flexi-carbon Leg destroyed. 08781_ Siege Slug penetrates Machine. Map ----- +----------------------------------------------------+ | #" " "#????????????????????????????????????? | | #" " "#????????????????????????????????????? | | #" " "#????????????????????????????????????? | | #" " ""#????????????????????????????????????? | | #" " ""#????????????????????????????????????? | | #"" ""#????????????????????????????????????? | | #### ##########??????????????????????????????????? | | #??????????????????????????????????? | | #??????????????????????????????????? | | #??????????????????????????????????? | | #????????? ?????????????????????? | | #????????" ???????????????????? | | ##### #???????#" ???????????????????? | | ????# #???????" "???????????????????? | | ????# #???????" "???????????????????? | | ????# #???????" ""??????????????????? | | ????# #???????" ""??????????????????? | | ????# #??????"" ""#?????????????????? | | ????# ###?#???" ""#?????????????????? | | ????# ""#"#??"" ""#? ???????????????? | | ????# """"#???" ""# "??????????????? | | ????# ""#?????#"p "" ??????????????? | | ????# ###?????#" "" ?? "???????????? | | ????# ######### ""# " ???????????? | | ????# j % ; "" ????????????? | | ????# @ "#?????????????????? | | ????# j ""#?????????????????? | | ????# j "#?????????????????? | | ##### T % % #?????????????????? | | T """""???????????????? | | """""???????????????? | | ???????????????? | | ?????????????? | | ?????????????? | | #""""#" ?????????????? | | #????#" ?????????????? | | #????#"""""" """""""????????????? | | ####### ### ####?????###### #####??????????????? | | # # #?????????????? ??????????????????? | | # # #??????????????? ?????????????????? | | # # #[ # #???????????????? ?????????????????? | | #! # ! #! # #??????????????????????????????????? | | #!/#![ #/!# #??????????????????????????????????? | | ########### #??????????????????????????????????? | | ??????????# #??????????????????????????????????? | | ??????????# #??????????????????????????????????? | | ??????????# #??????????????????????????????????? | | ??????????# #??????????????????????????????????? | | ??????????# #??????????????????????????????????? | | ?????###### #??????????????????????????????????? | +----------------------------------------------------+ Best States ------------- Heat Dissipation 25 Energy Generation 15 Energy Capacity 265 Matter Stores 300 Matter Capacity 300 Sight Range 16 Terrain Scan Density 10 Base Temperature (-) 100 Armor Coverage 150 Resistance: KI 35 Resistance: TH 35 Resistance: EX 35 Resistance: EM 35 Resistance: I 35 Resistance: S 35 Resistance: P 35 Evasion (%) 57 Targeting Accuracy 5 Recoil Reduction 3 Offensive Hacking 20 Authchip Count 2 Item Schematics ----------------- Missile Launcher | -9/Recycling | Hacked Trap Scanner | -9/Recycling | Hacked Gauss Cannon | -9/Recycling | Hacked Shield Generator | -9/Recycling | Hacked Particle Gun | -9/Recycling | Hacked Imp. Aluminum Leg | -9/Recycling | Hacked Robot Schematics ------------------ L-31 Rogue | -9/Recycling | Hacked B-36 Bruiser | -9/Recycling | Hacked R-06 Scavenger | -9/Recycling | Hacked Fabricated ------------ Nothing Repaired ---------- Lgt. Armor Plating | 65% | -10/Materials Lgt. Treads | 66% | -10/Materials Med. Laser | 74% | -10/Materials Lgt. Treads | 77% | -10/Materials Lgt. Treads | 80% | -10/Materials Studied --------- None Alien Tech Used ----------------- None Achievements -------------- None Challenges ------------ None Game ------ Seed DeepSeismicLoader Manual? 0 Play Time 00:35:23 Cumulative 99.3 hours Start 2025.11.17 @ 09:41:05 End 2025.11.17 @ 10:17:21 Sessions 1 Manual Loads 0 Difficulty Explorer Special Mode None Game No. 109 Rogue 0 Adventurer 0 Explorer 109 Win Type - Total 0 Types 0/0/0/0/0/0/0/0/0/0 Lore% 60 Gallery% 60 Achievement% 46 Wizard Run 0 Options --------- Layout 1 ASCII 0 Keyboard 0 Movement Mouse Keybinds 0 Fullscreen 1 Font 24/Smallcaps Map View 50x35 Zoom Use 0% Tactical HUD 1 Map Filters NONE Filters NONE Steam 1 RUN: 250b5e4e-91c0-4029-b9db-01987ae4d580